fUST/lending_fUST_20260111
["ID","MTS","AMOUNT","RATE_DAILY","PERIOD"]
[401255754,1768078243788,-151.0,0.00037084,31]
[401255755,1768078243798,-151.0,0.00037084,31]
[401255756,1768078243807,-155.211218,0.00037084,31]
[401255757,1768078243814,-151.0,0.00037084,31]
[401255758,1768078243823,-157.126084,0.00037084,31]
[401255759,1768078243832,-151.0,0.00037084,31]
[401255760,1768078243841,-151.0,0.00037084,31]
[401255761,1768078243850,-151.0,0.00037084,31]
[401255762,1768078243860,-151.0,0.00037084,31]
[401255763,1768078243870,-151.0,0.00037084,31]
[401255764,1768078243879,-171.590858,0.00037084,31]
[401255765,1768078243888,-151.0,0.00037084,31]
[401255766,1768078243897,-151.0,0.00037084,31]
[401255768,1768078243906,-151.0,0.00037084,31]
[401255770,1768078243915,-151.0,0.00037084,31]
[401255772,1768078243924,-151.0,0.00037084,31]
[401255774,1768078243933,-191.532893,0.00037084,31]
[401255775,1768078243942,-151.0,0.00037084,31]
[401255777,1768078243952,-151.0,0.00037084,31]
[401255779,1768078243961,-151.0,0.00037084,31]
[401255781,1768078243971,-151.0,0.00037084,31]
[401255784,1768078243980,-162.614017,0.00037084,31]
[401255785,1768078243990,-538192.66147822,0.00037084,20]
[401255787,1768078243999,-1664142.28094835,0.00037084,20]
[401255789,1768078244008,-183976.50228192,0.00037084,20]
[401255791,1768078244017,-4193.5843137,0.00037084,2]
[401255793,1768078244027,-289.32335919,0.00037084,19]
[401255795,1768078244037,-1953.18324396,0.00037084,5]
[401255797,1768078244046,-150.0,0.00037084,7]
[401255799,1768078244055,-422307.60904564,0.00037084,20]
[401255801,1768078244064,-16590.38058185,0.00037084,10]
[401255803,1768078244073,-26527.60125226,0.00037084,12]
[401255805,1768078244082,-1470151.0859839,0.00037084,20]
[401255813,1768078244151,-8337.06688469,0.00037084,20]
[401255817,1768078244174,-593.92047474,0.00013698,2]
[401255819,1768078244184,-23444.0497818,0.00037084,20]
[401255839,1768078244375,-3e-08,0.00037084,20]
[401255841,1768078244386,-350.27052168,0.00037084,20]
[401255843,1768078244397,-90004.3299,0.00037084,20]
[401255846,1768078244414,-10957.98140471,0.00037084,20]
[401255848,1768078244424,-254.01130894,0.00037084,20]
[401255850,1768078244435,-1437.29746005,0.00037084,20]
[401255854,1768078244465,-469.0,0.00037084,30]
[401255856,1768078244475,-708.622086,0.00037084,20]
[401255858,1768078244486,-546.81039715,0.00037084,20]
[401255861,1768078244497,-564.67278926,0.00037084,20]
[401255863,1768078244509,-1629.86680591,0.00037084,20]
[401255909,1768078244985,-6010.6868793,0.00037084,20]
[401255985,1768078245639,-469.0,0.00037084,30]
[401255987,1768078245648,-73489.8285155,0.00037084,20]
[401255989,1768078245659,-28060.96804245,0.00037084,20]
[401255999,1768078245747,-3129.56755248,0.00037084,20]
[401256002,1768078245758,-802.84844993,0.00037084,20]
[401259239,1768079431715,-407.454,0.00011979,2]
[401259240,1768079431725,-331.86683316,0.00012089,2]
[401259241,1768079431736,-300.0,0.00012199,2]
[401259242,1768079431746,-1200.0,0.00012199,2]
[401259243,1768079431756,-151.0,0.000122,2]
[401259244,1768079431766,-151.0,0.000122,2]
[401259245,1768079431775,-151.0,0.000122,2]
[401259246,1768079431785,-151.0,0.000122,2]
[401259247,1768079431795,-151.0,0.000122,2]
[401259248,1768079431804,-151.0,0.000122,2]
[401259250,1768079431814,-151.0,0.000122,2]
[401259253,1768079431823,-151.0,0.000122,2]
[401259255,1768079431832,-42666.10149952,0.000122,2]
[401259258,1768079431844,-1326.0,0.000122,2]
[401259261,1768079431855,-6007.89850048,0.000122,2]
[401259264,1768079431865,-500.0,0.00012222,2]
[401259268,1768079431875,-500.0,0.00012222,2]
[401259270,1768079431884,-500.0,0.00012222,2]
[401259272,1768079431893,-500.0,0.00012222,2]
[401259274,1768079431903,-500.0,0.00012222,2]
[401259276,1768079431913,-500.0,0.00012222,2]
[401259277,1768079431922,-500.0,0.00012222,2]
[401259279,1768079431932,-300.45191665,0.00012222,2]
[401259281,1768079431941,-500.0,0.00012222,2]
[401259282,1768079431950,-500.0,0.00012222,2]
[401259284,1768079431959,-442.45540153,0.00012222,2]
[401259286,1768079431968,-500.0,0.00012222,2]
[401259288,1768079431978,-500.0,0.00012222,2]
[401259290,1768079431987,-500.0,0.00012222,2]
[401259292,1768079431997,-500.0,0.00012222,2]
[401259293,1768079432007,-233.88565844,0.00012222,2]
[401259296,1768079432018,-266.11434156,0.00012222,2]
[401259299,1768079432028,-500.0,0.00012222,2]
[401259301,1768079432037,-500.0,0.00012222,2]
[401259303,1768079432046,-500.0,0.00012222,2]
[401259305,1768079432056,-500.0,0.00012222,2]
[401259307,1768079432065,-500.0,0.00012222,2]
[401259309,1768079432075,-500.0,0.00012222,2]
[401259312,1768079432085,-500.0,0.00012222,2]
[401259314,1768079432094,-500.0,0.00012222,2]
[401259316,1768079432104,-500.0,0.00012222,2]
[401259318,1768079432113,-500.0,0.00012222,2]
[401259320,1768079432124,-500.0,0.00012222,2]
[401259321,1768079432133,-500.0,0.00012222,2]
[401259322,1768079432143,-500.0,0.00012222,2]
[401259323,1768079432152,-500.0,0.00012222,2]
[401259324,1768079432160,-500.0,0.00012222,2]
[401259325,1768079432170,-500.0,0.00012222,2]
[401259327,1768079432179,-500.0,0.00012222,2]
[401259329,1768079432189,-500.0,0.00012222,2]
[401259331,1768079432198,-500.0,0.00012222,2]
[401259333,1768079432207,-500.0,0.00012222,2]
[401259335,1768079432216,-500.0,0.00012222,2]
[401259337,1768079432225,-500.0,0.00012222,2]
[401259339,1768079432234,-500.0,0.00012222,2]
[401259340,1768079432245,-500.0,0.00012222,2]
[401259343,1768079432255,-500.0,0.00012222,2]
[401259344,1768079432265,-500.0,0.00012222,2]
[401259346,1768079432275,-500.0,0.00012222,2]
[401259347,1768079432284,-391.68424295,0.00012222,2]
[401259349,1768079432294,-500.0,0.00012222,2]
[401259351,1768079432303,-500.0,0.00012222,2]
[401259353,1768079432313,-500.0,0.00012222,2]
[401259355,1768079432323,-500.0,0.00012222,2]
[401259357,1768079432332,-500.0,0.00012222,2]
[401259359,1768079432342,-500.0,0.00012222,2]
[401259361,1768079432352,-500.0,0.00012222,2]
[401259363,1768079432361,-500.0,0.00012222,2]
[401259365,1768079432371,-500.0,0.00012222,2]
[401259367,1768079432381,-500.0,0.00012222,2]
[401259369,1768079432392,-500.0,0.00012222,2]
[401259372,1768079432404,-500.0,0.00012222,2]
[401259374,1768079432414,-500.0,0.00012222,2]
[401259376,1768079432424,-500.0,0.00012222,2]
[401259378,1768079432434,-500.0,0.00012222,2]
[401259380,1768079432444,-500.0,0.00012222,2]
[401259382,1768079432452,-500.0,0.00012222,2]
[401259383,1768079432462,-500.0,0.00012222,2]
[401259385,1768079432472,-500.0,0.00012222,2]
[401259387,1768079432482,-500.0,0.00012222,2]
[401259389,1768079432491,-339.50996723,0.00012222,2]
[401259391,1768079432501,-500.0,0.00012222,2]
[401259393,1768079432510,-500.0,0.00012222,2]
[401259395,1768079432520,-500.0,0.00012222,2]
[401259397,1768079432530,-500.0,0.00012222,2]
[401259399,1768079432539,-500.0,0.00012222,2]
[401259401,1768079432549,-500.0,0.00012222,2]
[401259403,1768079432559,-500.0,0.00012222,2]
[401259405,1768079432568,-500.0,0.00012222,2]
[401259407,1768079432578,-500.0,0.00012222,2]
[401259409,1768079432587,-500.0,0.00012222,2]
[401259411,1768079432596,-500.0,0.00012222,2]
[401259412,1768079432605,-500.0,0.00012222,2]
[401259414,1768079432614,-500.0,0.00012222,2]
[401259416,1768079432623,-500.0,0.00012222,2]
[401259418,1768079432633,-500.0,0.00012222,2]
[401259419,1768079432642,-285.97744321,0.00012222,2]
[401259420,1768079432652,-500.0,0.00012222,2]
[401259421,1768079432661,-500.0,0.00012222,2]
[401259422,1768079432671,-500.0,0.00012222,2]
[401259423,1768079432681,-500.0,0.00012222,2]
[401259424,1768079432690,-500.0,0.00012222,2]
[401259425,1768079432700,-500.0,0.00012222,2]
[401259426,1768079432710,-240.26336653,0.00012222,2]
[401259427,1768079432719,-289.98726477,0.00012223,2]
[401259428,1768079432728,-11896.68623679,0.00012224,2]
[401259429,1768079432936,-997.14197923,0.00012224,2]
[401259430,1768079432948,-4579.83151419,0.00012224,2]
[401259442,1768079437850,-982526.34026979,0.00012224,2]
[401259443,1768079437861,-2507.06171184,0.00012229,2]
[401259444,1768079437870,-985.1565629,0.00012329,2]
[401259445,1768079437880,-985.1565629,0.00012329,2]
[401259446,1768079437889,-985.1565629,0.00012329,2]
[401259447,1768079437899,-985.1565629,0.00012329,2]
[401259448,1768079437907,-985.1565629,0.00012329,2]
[401259449,1768079437917,-985.1565629,0.00012329,2]
[401259450,1768079437926,-985.1565629,0.00012329,2]
[401259451,1768079437935,-985.1565629,0.00012329,2]
[401259452,1768079437946,-985.1565629,0.00012329,2]
[401259453,1768079437955,-985.1565629,0.00012329,2]
[401259454,1768079437965,-985.1565629,0.00012329,2]
[401259455,1768079437974,-985.1565629,0.00012329,2]
[401259456,1768079437984,-985.1565629,0.00012329,2]
[401259457,1768079437993,-985.1565629,0.00012329,2]
[401259458,1768079438003,-985.1565629,0.00012329,2]
[401259459,1768079438013,-985.1565629,0.00012329,2]
[401259460,1768079438022,-985.1565629,0.00012329,2]
[401259461,1768079438031,-985.1565629,0.00012329,2]
[401259462,1768079438041,-985.1565629,0.00012329,2]
[401259463,1768079438050,-985.1565629,0.00012329,2]
[401259464,1768079438060,-985.1565629,0.00012329,2]
[401259465,1768079438070,-985.1565629,0.00012329,2]
[401259466,1768079438080,-985.1565629,0.00012329,2]
[401259467,1768079438090,-985.1565629,0.00012329,2]
[401259468,1768079438099,-985.1565629,0.00012329,2]
[401259469,1768079438113,-985.1565629,0.00012329,2]
[401259470,1768079438123,-985.1565629,0.00012329,2]
[401259471,1768079438133,-985.1565629,0.00012329,2]
[401259472,1768079438142,-985.1565629,0.00012329,2]
[401259473,1768079438151,-985.1565629,0.00012329,2]
[401259474,1768079438161,-985.1565629,0.00012329,2]
[401259475,1768079438171,-985.1565629,0.00012329,2]
[401259476,1768079438181,-985.1565629,0.00012329,2]
[401259477,1768079438191,-985.1565629,0.00012329,2]
[401259478,1768079438201,-985.1565629,0.00012329,2]
[401259479,1768079438211,-985.1565629,0.00012329,2]
[401259480,1768079438221,-985.1565629,0.00012329,2]
[401259481,1768079438231,-985.1565629,0.00012329,2]
[401259482,1768079438241,-985.1565629,0.00012329,2]
[401259483,1768079438251,-985.1565629,0.00012329,2]
[401259484,1768079438261,-985.1565629,0.00012329,2]
[401259485,1768079438271,-985.1565629,0.00012329,2]
[401259486,1768079438281,-985.1565629,0.00012329,2]
[401259487,1768079438290,-985.1565629,0.00012329,2]
[401259488,1768079438300,-985.1565629,0.00012329,2]
[401259489,1768079438310,-985.1565629,0.00012329,2]
[401259490,1768079438320,-985.1565629,0.00012329,2]
[401259491,1768079438330,-985.1565629,0.00012329,2]
[401259492,1768079438340,-985.1565629,0.00012329,2]
[401259493,1768079438350,-985.1565629,0.00012329,2]
[401259494,1768079438360,-985.1565629,0.00012329,2]
[401259495,1768079438371,-985.1565629,0.00012329,2]
[401259496,1768079438381,-985.1565629,0.00012329,2]
[401259497,1768079438391,-985.1565629,0.00012329,2]
[401259498,1768079438404,-985.1565629,0.00012329,2]
[401259499,1768079438414,-985.1565629,0.00012329,2]
[401259500,1768079438424,-985.1565629,0.00012329,2]
[401259501,1768079438435,-985.1565629,0.00012329,2]
[401259502,1768079438445,-985.1565629,0.00012329,2]
[401259503,1768079438455,-985.1565629,0.00012329,2]
[401259504,1768079438466,-985.1565629,0.00012329,2]
[401259505,1768079438479,-985.1565629,0.00012329,2]
[401259506,1768079438489,-985.1565629,0.00012329,2]
[401259507,1768079438499,-985.1565629,0.00012329,2]
[401259508,1768079438509,-1358.28922382,0.00012329,2]
[401259509,1768079438519,-1358.28922382,0.00012329,2]
[401259510,1768079438529,-1358.28922382,0.00012329,2]
[401259511,1768079438539,-1358.28922382,0.00012329,2]
[401259512,1768079438549,-1358.28922382,0.00012329,2]
[401259513,1768079438559,-1358.28922382,0.00012329,2]
[401259514,1768079438569,-1358.28922382,0.00012329,2]
[401259515,1768079438578,-1358.28922382,0.00012329,2]
[401259516,1768079438587,-1358.28922382,0.00012329,2]
[401259517,1768079438597,-1358.28922382,0.00012329,2]
[401259518,1768079438607,-1358.28922382,0.00012329,2]
[401259519,1768079438618,-1358.28922382,0.00012329,2]
[401259520,1768079438628,-1358.28922382,0.00012329,2]
[401259521,1768079438637,-1358.28922382,0.00012329,2]
[401259522,1768079438647,-1358.28922382,0.00012329,2]
[401259523,1768079438656,-1358.28922382,0.00012329,2]
[401259524,1768079438667,-1358.28922382,0.00012329,2]
[401259525,1768079438677,-1358.28922382,0.00012329,2]
[401259526,1768079438687,-1358.28922382,0.00012329,2]
[401259527,1768079438696,-1358.28922382,0.00012329,2]
[401259528,1768079438706,-1358.28922382,0.00012329,2]
[401259529,1768079438715,-1358.28922382,0.00012329,2]
[401259530,1768079438724,-1358.28922382,0.00012329,2]
[401259531,1768079438733,-1358.28922382,0.00012329,2]
[401259532,1768079438743,-1358.28922382,0.00012329,2]
[401259533,1768079438753,-300.0,0.00012569,2]
[401259534,1768079438763,-300.0,0.00012569,2]
[401259535,1768079438773,-300.0,0.00012569,2]
[401259536,1768079438783,-300.0,0.00012569,2]
[401259537,1768079438792,-300.0,0.00012569,2]
[401259538,1768079438804,-300.0,0.00012569,2]
[401259539,1768079438814,-300.0,0.00012569,2]
[401259540,1768079438824,-300.0,0.00012569,2]
[401259541,1768079438833,-300.0,0.00012569,2]
[401259542,1768079438843,-300.0,0.00012569,2]
[401259543,1768079438853,-300.0,0.00012569,2]
[401259544,1768079438863,-300.0,0.00012569,2]
[401259545,1768079438872,-300.0,0.00012569,2]
[401259546,1768079438882,-300.0,0.00012569,2]
[401259547,1768079438892,-300.0,0.00012569,2]
[401259548,1768079438902,-600.0,0.00012569,2]
[401259549,1768079438912,-6334.84121396,0.000129,2]
[401259550,1768079438922,-345.42301472,0.00013273,2]
[401259551,1768079438931,-613.91769968,0.00013273,2]
[401259552,1768079438941,-500.0,0.00013273,2]
[401259553,1768079438951,-544.98070057,0.00013273,2]
[401259554,1768079438961,-500.0,0.00013273,2]
[401259555,1768079438971,-500.0,0.00013273,2]
[401259556,1768079438981,-500.0,0.00013273,2]
[401259557,1768079438991,-500.0,0.00013273,2]
[401259558,1768079439001,-500.0,0.00013273,2]
[401259559,1768079439011,-500.0,0.00013273,2]
[401259560,1768079439023,-500.0,0.00013273,2]
[401259561,1768079439033,-500.0,0.00013273,2]
[401259562,1768079439044,-500.0,0.00013273,2]
[401259563,1768079439054,-259.53509547,0.00013273,2]
[401259564,1768079439064,-500.0,0.00013273,2]
[401259565,1768079439074,-500.0,0.00013273,2]
[401259566,1768079439084,-500.0,0.00013273,2]
[401259567,1768079439093,-500.0,0.00013273,2]
[401259568,1768079439102,-500.0,0.00013273,2]
[401259569,1768079439112,-500.0,0.00013273,2]
[401259570,1768079439121,-500.0,0.00013273,2]
[401259571,1768079439130,-500.0,0.00013273,2]
[401259572,1768079439140,-500.0,0.00013273,2]
[401259573,1768079439149,-500.0,0.00013273,2]
[401259574,1768079439159,-500.0,0.00013273,2]
[401259575,1768079439169,-500.0,0.00013273,2]
[401259576,1768079439179,-500.0,0.00013273,2]
[401259577,1768079439188,-500.0,0.00013273,2]
[401259578,1768079439199,-500.0,0.00013273,2]
[401259579,1768079439208,-500.0,0.00013273,2]
[401259580,1768079439218,-420.0,0.00013389,2]
[401259581,1768079439229,-34905.41046865,0.00013443,2]
[401259582,1768079439239,-500.0,0.00013698,2]
[401259583,1768079439249,-1000.0,0.00013699,2]
[401259584,1768079439258,-500.0,0.00013699,2]
[401259585,1768079439268,-469.53593685,0.00013699,2]
[401259586,1768079439278,-500.0,0.00013699,2]
[401259587,1768079439288,-500.0,0.00013699,2]
[401259588,1768079439298,-500.0,0.00013699,2]
[401259589,1768079439308,-500.0,0.00013699,2]
[401259590,1768079439318,-500.0,0.00013699,2]
[401259591,1768079439327,-500.0,0.00013699,2]
[401259592,1768079439337,-313.64870907,0.00013699,2]
[401259593,1768079439346,-500.0,0.00013699,2]
[401259594,1768079439357,-500.0,0.00013699,2]
[401259595,1768079439367,-500.0,0.00013699,2]
[401259596,1768079439377,-500.0,0.00013699,2]
[401259597,1768079439386,-252.81793801,0.00013699,2]
[401259598,1768079439397,-500.0,0.00013699,2]
[401259599,1768079439406,-500.0,0.00013699,2]
[401259600,1768079439416,-500.0,0.00013699,2]
[401259601,1768079439426,-500.0,0.00013699,2]
[401259602,1768079439438,-500.0,0.00013699,2]
[401259603,1768079439448,-500.0,0.00013699,2]
[401259604,1768079439459,-500.0,0.00013699,2]
[401259605,1768079439470,-500.0,0.00013699,2]
[401259606,1768079439486,-500.0,0.00013699,2]
[401259607,1768079439500,-500.76011771,0.00013699,2]
[401259608,1768079439510,-500.0,0.00013699,2]
[401259609,1768079439520,-366.95119537,0.00013699,2]
[401259610,1768079439529,-443.77041137,0.00013699,2]
[401259611,1768079439539,-500.0,0.00013699,2]
[401259612,1768079439549,-268.13097792,0.00013699,2]
[401259613,1768079439559,-295.9151759,0.00013699,2]
[401259614,1768079439569,-500.0,0.00013699,2]
[401259615,1768079439579,-500.66295379,0.00013699,2]
[401259616,1768079439589,-500.0,0.00013699,2]
[401259617,1768079439600,-286.81506182,0.00013699,2]
[401259618,1768079439610,-501.32276914,0.00013699,2]
[401259619,1768079439619,-441.79967602,0.00013699,2]
[401259620,1768079439628,-500.0,0.00013699,2]
[401259621,1768079439638,-500.0,0.00013699,2]
[401259622,1768079439647,-500.0,0.00013699,2]
[401259623,1768079439657,-500.0,0.00013699,2]
[401259624,1768079439667,-500.0,0.00013699,2]
[401259625,1768079439678,-500.0,0.00013699,2]
[401259626,1768079439688,-500.0,0.00013699,2]
[401259627,1768079439700,-607.41040289,0.00013699,2]
[401259628,1768079439710,-500.0,0.00013699,2]
[401259630,1768079439721,-500.0,0.00013699,2]
[401259631,1768079439731,-500.0,0.00013821,2]
[401259632,1768079439740,-568.99927688,0.00013821,2]
[401259633,1768079439750,-500.0,0.00013821,2]
[401259634,1768079439761,-1000.0,0.00013821,2]
[401259635,1768079439771,-510.98739129,0.00013821,2]
[401259636,1768079439781,-500.0,0.00013821,2]
[401259637,1768079439790,-160.64782172,0.00013821,2]
[401259638,1768079439800,-1000.0,0.00013821,2]
[401259639,1768079439809,-500.0,0.00013821,2]
[401259640,1768079439818,-500.0,0.00013821,2]
[401259642,1768079439828,-223.48736773,0.00013821,2]
[401259644,1768079439838,-1000.0,0.00013821,2]
[401259646,1768079439847,-500.0,0.00013821,2]
[401259648,1768079439856,-500.0,0.00013821,2]
[401259650,1768079439865,-500.0,0.00013821,2]
[401259652,1768079439874,-891.0513895,0.00013821,2]
[401259654,1768079439883,-473.2526551,0.00013821,2]
[401259656,1768079439893,-500.0,0.00013821,2]
[401259658,1768079439902,-1000.0,0.00013821,2]
[401259660,1768079439912,-720.0,0.00013826,2]
[401259662,1768079439921,-391.60286313,0.00014089,2]
[401259664,1768079439931,-1000.0,0.00014247,2]
[401259666,1768079439941,-1000.0,0.00014247,2]
[401259668,1768079439950,-1000.0,0.00014247,2]
[401259670,1768079439960,-500.0,0.00014247,2]
[401259672,1768079439969,-500.0,0.00014247,2]
[401259674,1768079439979,-1000.0,0.00014247,2]
[401259676,1768079439988,-500.0,0.00014247,2]
[401259678,1768079439997,-1000.0,0.00014247,2]
[401259680,1768079440007,-1000.0,0.00014247,2]
[401259683,1768079440017,-1140.67728986,0.00014247,2]
[401259685,1768079440027,-1000.0,0.00014247,2]
[401259687,1768079440037,-500.62599215,0.00014247,2]
[401259689,1768079440046,-5000.0,0.0001451,2]
[401259691,1768079440056,-587.0,0.00014695,2]
[401259693,1768079440066,-445.01,0.00014782,2]
[401259695,1768079440076,-602.53259662,0.00014795,2]
[401259697,1768079440085,-1498.9723282,0.00014795,2]
[401259699,1768079440095,-1514.12213244,0.00014795,2]
[401259701,1768079440105,-488.64589349,0.00014795,2]
[401259703,1768079440114,-100000.0,0.00014882,2]
[401259706,1768079440124,-545.914549,0.00015068,2]
[401259709,1768079440133,-864.0,0.00015209,2]
[401259712,1768079440143,-2507.0617118,0.00015397,2]
[401259715,1768079440153,-250.0,0.00015828,2]
[401259719,1768079440162,-3000.0,0.00016,2]
[401259722,1768079440172,-3000.0,0.0001601,2]
[401259724,1768079440181,-3000.0,0.0001602,2]
[401259726,1768079440191,-3798.918734,0.0001603,2]
[401259728,1768079440201,-345.58662684,0.00016085,2]
[401259745,1768079440354,-451.3388931,0.00016089,2]
[401259748,1768079440365,-239.0,0.00016129,2]
[401259750,1768079440374,-154.9098912,0.00016438,2]
[401259752,1768079440384,-260.11060349,0.00016438,2]
[401259754,1768079440397,-1000.0,0.0001673,2]
[401259756,1768079440406,-380.1,0.00017623,2]
[401259758,1768079440416,-511.07492307,0.00018089,2]
[401259760,1768079440426,-1000.0,0.00018403,2]
[401259762,1768079440435,-244.0,0.00018403,2]
[401259763,1768079440445,-545.914549,0.00018493,2]
[401259766,1768079440455,-2507.0617118,0.00018566,2]
[401259768,1768079440465,-303.10001605,0.000189,2]
[401259770,1768079440475,-303.10001603,0.000189,2]
[401259772,1768079440485,-303.10001603,0.00019089,2]
[401259774,1768079440495,-844.4907,0.00019178,2]
[401259776,1768079440505,-167.58,0.000192,2]
[401259778,1768079440515,-11692.33,0.000192,2]
[401259780,1768079440524,-303.10001603,0.00019278,2]
[401259782,1768079440533,-202.78,0.000193,2]
[401259784,1768079440543,-163.88,0.000193,2]
[401259786,1768079440552,-166.96,0.000193,2]
[401259788,1768079440560,-380.1,0.00019395,2]
[401259790,1768079440570,-303.10001603,0.00019467,2]
[401259792,1768079440579,-303.10001603,0.00019656,2]
[401259794,1768079440589,-454.65002405,0.00019845,4]
[401259796,1768079440598,-382.1493,0.0002,4]
[401259798,1768079440607,-151.89012023,0.0002,2]
[401259800,1768079440616,-454.65002405,0.00020034,4]
[401259802,1768079440626,-570.81095304,0.00020089,2]
[401259804,1768079440635,-454.65002405,0.00020223,4]
[401259806,1768079440644,-1000.0,0.00020243,2]
[401259808,1768079440653,-492.0,0.00020243,2]
[401259810,1768079440662,-160.0,0.00020347,2]
[401259812,1768079440671,-1041.66666667,0.00020347,2]
[401259814,1768079440680,-454.65002405,0.00020412,4]
[401259816,1768079440689,-454.65002403,0.00020601,4]
[401259818,1768079440698,-380.1,0.00021166,2]
[401259820,1768079440708,-2507.0617118,0.00021734,2]
[401259822,1768079440717,-545.914549,0.00021918,2]
[401259824,1768079440727,-630.54698301,0.00022089,2]
[401259826,1768079440736,-1000.0,0.00022267,10]
[401259828,1768079440746,-791.0,0.00022267,10]
[401259830,1768079440755,-162.27,0.000223,2]
[401259832,1768079440764,-380.1,0.00022938,2]
[401259834,1768079440773,-690.28301297,0.00024089,2]
[401259836,1768079440783,-1000.0,0.00024494,10]
[401259838,1768079440792,-1000.0,0.00024494,10]
[401259840,1768079440802,-11692.33,0.000245,2]
[401259842,1768079440811,-380.1,0.00024709,2]
[401259844,1768079440821,-337988.424197,0.000249,2]
[401259846,1768079440831,-2507.0617118,0.00024902,2]
[401259848,1768079440841,-150.1,0.00025202,2]
[401259850,1768079440850,-250.0,0.00025205,2]
[401259852,1768079440860,-290.0,0.00025295,2]
[401259854,1768079440869,-290.0,0.00025317,7]
[401259856,1768079440879,-545.914549,0.00025342,2]
[401259858,1768079440888,-500.0,0.0002548,2]
[401259860,1768079440897,-500.0,0.0002548,2]
[401259862,1768079440907,-290.0,0.00025495,2]
[401259864,1768079440916,-290.0,0.00025511,7]
[401259866,1768079440926,-290.0,0.00025561,2]
[401259868,1768079440936,-500.0,0.00025617,2]
[401259870,1768079440945,-500.0,0.00025617,2]
[401259872,1768079440954,-290.0,0.00025627,2]
[401259874,1768079440964,-290.0,0.00025644,2]
[401259876,1768079440974,-290.0,0.00025739,2]
[401259878,1768079440985,-350.0,0.00025753,2]
[401259881,1768079440996,-500.0,0.00025754,2]
[401259883,1768079441007,-500.0,0.00025754,2]
[401259885,1768079441017,-500.0,0.00025891,2]
[401259887,1768079441026,-500.0,0.00025891,2]
[401259889,1768079441035,-290.0,0.00025915,2]
[401259891,1768079441044,-712.06243302,0.00025938,2]
[401259892,1768079441054,-1120.77897915,0.00025938,2]
[401259895,1768079441064,-293.0,0.00025985,2]
[401259897,1768079441073,-285.4711241,0.00026027,19]
[401259898,1768079441083,-500.0,0.00026028,2]
[401259901,1768079441092,-200.0,0.00026028,2]
[401259903,1768079441102,-500.0,0.00026028,2]
[401259905,1768079441112,-290.0,0.00026045,7]
[401259907,1768079441121,-290.0,0.00026071,7]
[401259908,1768079441131,-750.01904294,0.00026089,2]
[401259911,1768079441141,-290.0,0.00026094,2]
[401259913,1768079441150,-5000.0,0.00026105,2]
[401259914,1768079441160,-250.0,0.00026165,2]
[401259916,1768079441170,-250.0,0.00026165,2]
[401259918,1768079441179,-500.0,0.00026165,2]
[401259921,1768079441189,-500.0,0.00026165,2]
[401259923,1768079441199,-290.0,0.00026266,2]
[401259925,1768079441208,-450.0,0.00026301,2]
[401259926,1768079441217,-500.0,0.00026302,2]
[401259929,1768079441227,-500.0,0.00026302,2]
[401259930,1768079441237,-290.0,0.00026348,2]
[401259933,1768079441247,-500.0,0.00026439,2]
[401259935,1768079441257,-489.65888898,0.00026439,2]
[401259937,1768079441267,-380.1,0.00026481,2]
[401259939,1768079441276,-550.0,0.00026849,2]
[401259941,1768079441285,-290.0,0.00026915,2]
[401259943,1768079441295,-290.0,0.00026941,2]
[401259945,1768079441304,-1000.0,0.00026943,30]
[401259947,1768079441313,-1000.0,0.00026943,30]